Workbook

Sheet 1
A1: Dochody budżetu gminy na 2016 r.
E2: w złotych
A3: Dział | B3: Rozdział | C3: § | D3: Nazwa | E3: Plan ogółem
A4: 1 | B4: 2 | C4: 3 | D4: 4 | E4: 5
B5: bieżące
A6: 020 | D6: Leśnictwo | E6: =SUM(E7) -> 1000
B7: 02001 | D7: Gospodarka leśna | E7: =SUM(E8) -> 1000
C8: 0490 | D8: Wpływy i innych lokalnych opłat pobieranych przez jst na podstawie odrębnych ustaw | E8: 1000
A9: 600 | D9: TRANSPORT I ŁĄCZNOŚĆ | E9: =SUM(E10) -> 10000
B10: 60016 | D10: Drogi publiczne gminne | E10: =SUM(E11) -> 10000
C11: 0690 | D11: Wpływy z różnych opłat | E11: 10000
A12: 700 | D12: Gospodarka mieszkaniowa | E12: =SUM(E13) -> 39000
B13: 70005 | D13: Gospodarka gruntami i nieruchomościami | E13: =SUM(E14:E16) -> 39000
C14: 0470 | D14: Wpływy z opłat za zarząd, użytkowanie i służebności | E14: 1800
C15: 0550 | D15: Wpływy z opłat z tytułu użytkowania wieczystego nieruchomości | E15: 3200
C16: 0750 | D16: Dochody z najmu i dzierżawy składników majątkowych Skarbu Państwa, jst lub innych jednostek zaliczanych do sektora finansów publicznych oraz innych umów o podobnym charakterze | E16: 34000
A17: 750 | D17: Administracja Publiczna | E17: =SUM(E18+E21) -> 50988
B18: 75011 | D18: Urzędy Wojewódzkie | E18: =SUM(E19:E20) -> 47301
C19: 2010 | D19: Dotacje celowe otrzymane z budżetu państwa na realizację zadań bieżących z zakresu administracji rządowej oraz innych zadań zleconych gminie ustawami | E19: 47151
C20: 2360 | D20: Dochody jst związane z realizacją zadań z zakresu administracji rządowej oraz innych zadań zleconych ustawami | E20: 150
B21: 75023 | D21: Urzędy Gmin | E21: =SUM(E22:E22) -> 3687
C22: 0920 | D22: Wpływy z pozostałych odsetek | E22: 3687
A23: 751 | D23: Urzędy naczelnych organów władzy państwowej, kontroli i ochrony prawa oraz sądownictwa | E23: =SUM(E24) -> 1079
B24: 75101 | D24: Urzędy naczelnych organów władzy państwowej, kontroli i ochrony prawa | E24: =SUM(E25) -> 1079
C25: 2010 | D25: Dotacje celowe otrzymane z budżetu państwa na realizację zadań bieżących z zakresu administracji rządowej oraz innych zadań zleconych gminie ustawami | E25: 1079
A26: 756 | D26: Dochody od osób prawnych, od osób fizycznych i od innych jednostek nieposiadających osobowości prawnej oraz wydatki związane z ich poborem | E26: =SUM(E27+E29+E35+E45+E52) -> 4691840
B27: 75601 | D27: Wpływy z podatku dochodowego od osób fizycznych | E27: =SUM(E28) -> 2000
C28: 0350 | D28: Wpływy z podatku od działalności gospodarczej osób fizycznych, opłacanego w formie karty podatkowej | E28: 2000
B29: 75615 | D29: Wpływy z podatku rolnego, podatku leśnego,podatku od czynności cywilnoprawnych, podatków i opłat lokalnych od osób prawnych i innych jednostek organizacyjnych | E29: =SUM(E30:E34) -> 1174500
C30: 0310 | D30: Wpływy z podatku od nieruchomości | E30: 1100000
C31: 0320 | D31: Wpływy z podatku rolnego | E31: 500
C32: 0330 | D32: Wpływy z podatku leśnego | E32: 69000
C33: 0340 | D33: Wpływy z podatek od środków transportowych | E33: 4000
C34: 0910 | D34: Wpływy z odsetek od nieterminowych wpłat z tytułu podatków i opłat | E34: 1000
B35: 75616 | D35: Wpływy z podatku rolnego, podatku leśnego,podatku od spadków i darowizn,podatku od czynności cywilnoprawnych oraz podatków i opłat lokalnych od osób fizycznych | E35: =SUM(E36:E44) -> 510280
C36: 0310 | D36: Wpływy z podatku od nieruchomości | E36: 260000
C37: 0320 | D37: Wpływy z podatku rolnego | E37: 119000
C38: 0330 | D38: Wpływy z podatku leśnego | E38: 10000
C39: 0340 | D39: Wpływy z podatek od środków transportowych | E39: 60000
C40: 0360 | D40: Wpływy z podatku od spadków i darowizn | E40: 15000
C41: 0430 | D41: Wpływy z opłaty targowej | E41: 480
C42: 0500 | D42: Wpływy z podatku od czynności cywilnoprawnych | E42: 40800
C43: 0690 | D43: Wpływy z różnych opłat | E43: 1000
C44: 0910 | D44: Wpływy z odsetek od nieterminowych wpłat z tytułu podatków i opłat | E44: 4000
B45: 75618 | D45: Wpływy z innych opłat stanowiących dochody jednostek samorządu terytorialnego na podstawie ustaw | E45: =SUM(E46:E51) -> 524500
C46: 0400 | D46: Wpływy z opłaty produktowej | E46: 500
C47: 0410 | D47: Wpływy z opłaty skarbowej | E47: 10000
C48: 0460 | D48: Wpływy z opłaty eksploatacyjnej | E48: 450000
C49: 0480 | D49: Wpływy z opłat za zezwolenia na sprzedaż napojów alkoholowych | E49: 53000
C50: 0490 | D50: Wpływy i innych lokalnych opłat pobieranych przez jst na podstawie odrębnych ustaw | E50: 10000
C51: 0910 | D51: Wpływy z odsetek od nieterminowych wpłat z tytułu podatków i opłat | E51: 1000
B52: 75621 | D52: Udziały gmin w podatkach stanowiących dochód budżetu państwa | E52: =SUM(E53:E54) -> 2480560
C53: 0010 | D53: Wpływy z podatku dochodowego od osób fizycznych | E53: 2475560
C54: 0020 | D54: Wpływy z podatku dochodowego od osób prawnych | E54: 5000
A55: 758 | D55: Różne rozliczenia | E55: =SUM(E56+E58+E60) -> 6653827
B56: 75801 | D56: Część oświatowa subwencji ogólnej dla jednostek samorządu terytorialnego | E56: =SUM(E57) -> 4524081
C57: 2920 | D57: Subwencje ogólne z budżetu państwa | E57: 4524081
B58: 75807 | D58: Część wyrównawcza subwencji ogólnej dla gmin | E58: =SUM(E59) -> 2022677
C59: 2920 | D59: Subwencje ogólne z budżetu państwa | E59: 2022677
B60: 75831 | D60: Część równoważąca subwencji ogólnej dla gmin | E60: =SUM(E61) -> 107069
C61: 2920 | D61: Subwencje ogólne z budżetu państwa | E61: 107069
A62: 801 | D62: Oświata i wychowanie | E62: =SUM(E63+E68+E70+E72) -> 31620
B63: 80101 | D63: Szkoły podstawowe | E63: =SUM(E64:E67) -> 17600
C64: 0690 | D64: Wpływy z różnych opłat | E64: 100
C65: 0750 | D65: Dochody z najmu i dzierżawy składników majątkowych Skarbu Państwa, jst lub innych jednostek zaliczanych do sektora finansów publicznych oraz innych umów o podobnym charakterze | E65: 17000
C66: 0920 | D66: Wpływy z pozostałych odsetek | E66: 490
C67: 2400 | D67: Wpływy do budżetu pozostałóści środków finansowych gromadzonych na wydzielonym rachunku jednostki budżetowej | E67: 10
B68: 80104 | D68: Przedszkola | E68: =SUM(E69:E69) -> 7000
C69: 0660 | D69: Wpływy z opłat za korzystanie z wychowania przedszkolnego | E69: 7000
B70: 80106 | D70: Inne formy wychowania przedszkolnego | E70: =SUM(E71) -> 7000
C71: 0660 | D71: Wpływy z opłat za korzystanie z wychowania przedszkolnego | E71: 7000
B72: 80110 | D72: Gimnazja | E72: =SUM(E73) -> 20
C73: 2400 | D73: Wpływy do budżetu pozostałóści środków finansowych gromadzonych na wydzielonym rachunku jednostki budżetowej | E73: 20
A74: 852 | D74: Pomoc Społeczna | E74: =SUM(E75+E80+E83+E87+E90+E85) -> 2606446
B75: 85212 | D75: Świadczenia rodzinne , świadczenie z funduszu alimentacyjnego oraz składki na ubezpieczenia emerytalne i rentowe z ubezpieczenia społecznego | E75: =SUM(E76:E79) -> 2364122
C76: 0920 | D76: Wpływy z pozostałych odsetek | E76: 3000
C77: 2010 | D77: Dotacje celowe otrzymane z budżetu państwa na realizację zadań bieżących z zakresu administracji rządowej oraz innych zadań zleconych gminie ustawami | E77: 2348122
C78: 2360 | D78: Dochody jst związane z realizacją zadań z zakresu administracji rządowej oraz innych zadań zleconych ustawami | E78: 3000
C79: 2910 | D79: Wpływy ze zwrotów dotacji oraz płatności, w tym wykorzystanych niezgodnie z przeznaczeniem lub wykorzystanych z naruszeniem procedur, o których mowa w art.184 ustawy, pobranych nienależnie lub w nadmiernej wysokości | E79: 10000
B80: 85213 | D80: Składki na ubezpieczenie zdrowotne opłacane za osoby pobierające niektóre świadczenia z pomocy społecznej, niektóre świadczenia rodzinne oraz za osoby uczestniczące w zajęciach w centrum integracji społecznej | E80: =SUM(E82+E81) -> 15501
C81: 2010 | D81: Dotacje celowe otrzymane z budżetu państwa na realizację zadań bieżących z zakresu administracji rządowej oraz innych zadań zleconych gminie ustawami | E81: 6561
C82: 2030 | D82: Dotacje celowe otrzymane z budżetu państwa na realizację własnych zadań bieżących gmin | E82: 8940
B83: 85214 | D83: Zasiłki i pomoc w naturze oraz składki na ubezpieczenia emerytalne i rentowe | E83: =SUM(E84:E84) -> 65339
C84: 2030 | D84: Dotacje celowe otrzymane z budżetu państwa na realizację własnych zadań bieżących gmin | E84: 65339
B85: 85216 | D85: Zasiłki stałe | E85: =SUM(E86) -> 64585
C86: 2030 | D86: Dotacje celowe otrzymane z budżetu państwa na realizację własnych zadań bieżących gmin | E86: 64585
B87: 85219 | D87: Ośrodki pomocy społecznej | E87: =SUM(E88:E89) -> 57324
C88: 0920 | D88: Wpływy z pozostałych odsetek | E88: 850
C89: 2030 | D89: Dotacje celowe otrzymane z budżetu państwa na realizację własnych zadań bieżących gmin | E89: 56474
B90: 85295 | D90: Pozostała działalność | E90: =SUM(E91:E91) -> 39575
C91: 2030 | D91: Dotacje celowe otrzymane z budżetu państwa na realizację własnych zadań bieżących gminy | E91: 39575
A92: 900 | D92: Gospodarka komunalna i ochrona środowiska | E92: =SUM(E93+E95) -> 299200
B93: 90019 | D93: Wpływy i wydatki związane z gromadzeniem środków z opłat i kar za korzystanie ze środowiska | E93: =SUM(E94) -> 10000
C94: 0690 | D94: Wpływy z różnych opłat | E94: 10000
B95: 90002 | D95: Gospodarka odpadami | E95: =SUM(E96) -> 289200
C96: 0490 | D96: Wpływy i innych lokalnych opłat pobieranych przez jst na podstawie odrębnych ustaw | E96: 289200
A97: bieżące razem: | E97: =SUM(E6+E9+E12+E17+E23+E26+E55+E62+E74++E92) -> 14385000
A99: majątkowe
A100: 010 | D100: ROLNICTWO I ŁOWIECTWO | E100: =SUM(E101) -> 2800000
B101: 01010 | D101: Infrastruktura wodociagowa i sanitacyjna wsi | E101: =SUM(E102) -> 2800000
C102: 6257 | D102: Dotacje celowe w ramach programów finansowanych z udziałem środków europejskich oraz środków, o których mowa w art. 5 ust.3 pkt.5 lit.a i b ustawy, lub płatności w ramach budżetu środków europejskich, realizowanych przez jednostki samorządu terytorialnego | E102: 2800000
A103: 600 | D103: TRANSPORT I ŁĄCZNOŚĆ | E103: =SUM(E104) -> 450000
B104: 60016 | D104: Drogi publiczne gminne | E104: =SUM(E105) -> 450000
C105: 6257 | D105: Dotacje celowe w ramach programów finansowanych z udziałem środków europejskich oraz środków, o których mowa w art. 5 ust.3 pkt.5 lit.a i b ustawy, lub płatności w ramach budżetu środków europejskich, realizowanych przez jednostki samorządu terytorialnego | E105: 450000
A106: 900 | D106: Gospodarka komunalna i ochrona środowiska | E106: =SUM(E107) -> 595000
B107: 90001 | D107: Gospodarka ściekowa i ochrona wód | E107: =SUM(E108) -> 595000
C108: 6257 | D108: Dotacje celowe w ramach programów finansowanych z udziałem środków europejskich oraz środków, o których mowa w art. 5 ust.3 pkt.5 lit.a i b ustawy, lub płatności w ramach budżetu środków europejskich, realizowanych przez jednostki samorządu terytorialnego | E108: 595000
A110: majątkowe razem: | E110: =SUM(E100+E103+E106) -> 3845000
A111: Ogółem: | E111: =SUM(E97+E110) -> 18230000

Sheet 2
A1: Wydatki budżetu gminy na 2016 r.
A4: Dział | B4: Rozdział | C4: Nazwa | D4: Plan | E4: z tego:
E5: Wydatki bieżące | F5: z tego: | N5: Wydatki majątkowe | O5: z tego:
F6: wydatki jednostek budżetowych | G6: z tego | I6: dotacje na zadania bieżące | J6: świadczdenia na rzecz osób fizycznych | K6: wydatki na programy finansowane z udziałem środków, o których mowa w art. 5 ust.1 pkt 2 i 3 | L6: wypłaty z tytułu poręczeń i gwarancji | O6: inwestycje i zakupy inwestycyjne | P6: w tym | Q6: zakup i objęcie akcji i udziałów oraz wniesienie wkładów do spółek prawa handlowego
G7: wynagrodzenia i składki od nich naliczane | H7: wydatki związane z realizacją statutowych zadań | M7: obsługa długu | P7: na programy finansowane z udziałem środków, o których mowa w art. 5 ust. 1 pkt 2 i 3
A8: 1 | B8: 2 | C8: 3 | D8: 4 | E8: 5 | F8: 6 | G8: 7 | H8: 8 | I8: 9 | J8: 10 | K8: 11 | L8: 12 | M8: 13 | N8: 14 | O8: 15 | P8: 16 | Q8: 17
A9: 010 | C9: Rolnictwo i Łowiectwo | D9: =SUM(D10:D12) -> 4077310 | E9: =SUM(E10:E12) -> 37310 | F9: =SUM(F10:F12) -> 37310 | G9: 0 | H9: 37310 | I9: 0 | J9: 0 | K9: 0 | L9: 0 | N9: 4040000 | O9: 4040000 | P9: 4000000
B10: 01010 | C10: Infrastruktura wodociągowa i sanitacyjna wsi | D10: 4055000 | E10: 15000 | F10: 15000 | H10: 15000 | N10: 4040000 | O10: 4040000 | P10: 4000000
B11: 01030 | C11: Izby rolnicze | D11: 2310 | E11: 2310 | F11: 2310 | H11: 2310
B12: 01095 | C12: Pozostała działalność | D12: 20000 | E12: 20000 | F12: 20000 | H12: 20000
A13: 400 | C13: Wytwarzanie i zaopatrywanie w energię elektryczną, gaz i wodę | D13: =SUM(D14) -> 119000 | E13: =SUM(E14) -> 119000 | F13: 0 | G13: 0 | H13: =SUM(H14) -> 0 | I13: =SUM(I14) -> 119000 | J13: 0
B14: 40002 | C14: Dostarczanie wody | D14: 119000 | E14: 119000 | I14: 119000
A15: 600 | C15: Transport i łączność | D15: =SUM(D16:D19) -> 926350 | E15: =SUM(E16:E19) -> 246350 | F15: 165750 | G15: 61450 | H15: 104300 | I15: 80000 | J15: 600 | N15: 680000 | O15: 680000 | P15: 670000
B16: 60004 | C16: Lokalny transport zbiorowy | D16: 12000 | E16: 12000 | F16: 12000 | G16: 0 | H16: 12000
B17: 60011 | C17: Drogi publiczne krajowe | D17: 800 | E17: 800 | F17: 800 | G17: 0 | H17: 800
B18: 60014 | C18: Drogi publiczne powiatowe | D18: 10500 | E18: 10500 | F18: 10500 | G18: 0 | H18: 10500 | N18: 0 | O18: 0
B19: 60016 | C19: Drogi publiczne gminne | D19: 903050 | E19: 223050 | F19: 142450 | G19: 61450 | H19: 81000 | I19: 80000 | J19: 600 | N19: 680000 | O19: 680000 | P19: 670000
A20: 700 | C20: Gospodarka mieszkaniowa | D20: =SUM(D21) -> 118600 | E20: =SUM(E21) -> 118600 | F20: =SUM(F21) -> 118600 | G20: =SUM(G21) -> 0 | H20: =SUM(H21) -> 118600 | I20: 0 | J20: 0
B21: 70005 | C21: Gospodarka gruntami i nieruchomościami | D21: 118600 | E21: 118600 | F21: 118600 | H21: 118600
A22: 710 | C22: Działalność usługowa | D22: =SUM(D23:D24) -> 2500 | E22: =SUM(E23:E24) -> 2500 | F22: =SUM(F23:F24) -> 2500 | G22: =SUM(G23:G24) -> 0 | H22: =SUM(H23:H24) -> 2500
B23: 71035 | C23: Cmentarze | D23: 1500 | E23: 1500 | F23: 1500 | G23: 0 | H23: 1500
B24: 71095 | C24: Pozostała działalność | D24: 1000 | E24: 1000 | F24: 1000 | G24: 0 | H24: 1000
A25: 750 | C25: Administracja publiczna | D25: =SUM(D26:D30) -> 1715951 | E25: 1715951 | F25: 1586851 | G25: 1330151 | H25: 256700 | I25: 0 | J25: 129100
B26: 75011 | C26: Urzędy wojewódzkie | D26: 47151 | E26: 47151 | F26: 47151 | G26: 47151
B27: 75022 | C27: Rady gmin | D27: 117000 | E27: 117000 | F27: 4000 | G27: 0 | H27: 4000 | I27: 0 | J27: 113000
B28: 75023 | C28: Urzędy gminy | D28: 1460200 | E28: 1460200 | F28: =SUM(G28+H28) -> 1459700 | G28: 1263000 | H28: 196700 | I28: 0 | J28: 500
B29: 75075 | C29: Promocja jednostek samorządu terytorialnego | D29: 30000 | E29: 30000 | F29: 30000 | G29: 0 | H29: 30000 | J29: 0
B30: 75095 | C30: Pozostała działalność | D30: 61600 | E30: 61600 | F30: =SUM(G30+H30) -> 46000 | G30: 20000 | H30: 26000 | J30: 15600
A31: 751 | C31: Urzędy naczelnych organów władzy państwowej, kontroli i ochrony prawa oraz sądownictwa | D31: =SUM(D32) -> 1079 | E31: =SUM(E32) -> 1079 | F31: =SUM(F32) -> 1079 | G31: =SUM(G32) -> 1079 | H31: 0 | I31: 0 | J31: 0
B32: 75101 | C32: Urzędy naczelnych organów władzy państwowej, kontroli i ochrony państwa | D32: 1079 | E32: 1079 | F32: 1079 | G32: 1079
A33: 754 | C33: Bezpieczeństwo publiczne i ochrona przeciwpożarowa | D33: =SUM(D34:D35) -> 87000 | E33: 87000 | F33: 77000 | G33: 8450 | H33: 68550 | I33: 0 | J33: 10000
B34: 75412 | C34: Ochotnicze straże pożarne | D34: 52700 | E34: 52700 | F34: =SUM(G34+H34) -> 42700 | G34: 8450 | H34: 34250 | I34: 0 | J34: 10000
B35: 75421 | C35: Zarzadzanie kryzysowe | D35: 34300 | E35: 34300 | F35: =SUM(G35+H35) -> 34300 | G35: 0 | H35: 34300
A36: 757 | C36: Obsługa długu publicznego | D36: =SUM(D37) -> 180000 | E36: =SUM(E37) -> 180000 | F36: 0 | G36: 0 | H36: 0 | I36: 0 | J36: 0 | K36: 0 | L36: 0 | M36: =SUM(M37) -> 180000
B37: 75702 | C37: Obsługa papierów wartościowych, kredytów i pożyczek jst | D37: 180000 | E37: 180000 | M37: 180000
A38: 758 | C38: Różne rozliczenia | D38: =SUM(D39) -> 120000 | E38: =SUM(E39) -> 120000 | F38: =SUM(F39) -> 120000 | G38: =SUM(G39) -> 0 | H38: =SUM(H39) -> 120000
B39: 75818 | C39: Rezerwy ogólne i celowe | D39: 120000 | E39: 120000 | F39: 120000 | G39: 0 | H39: 120000
A40: 801 | C40: Oświata i Wychowanie | D40: =SUM(D41:D49) -> 6939523 | E40: 6939523 | F40: 6290423 | G40: 4863700 | H40: 1426723 | I40: 380000 | J40: 269100
B41: 80101 | C41: Szkoły podstawowe | D41: 3442943 | E41: 3442943 | F41: =SUM(G41+H41) -> 2922943 | G41: 2607100 | H41: 315843 | I41: 380000 | J41: 140000
B42: 80103 | C42: Oddziały przedszkolne w szkołach podstawowych | D42: 254580 | E42: 254580 | F42: =SUM(G42+H42) -> 240180 | G42: 211200 | H42: 28980 | I42: 0 | J42: 14400
B43: 80104 | C43: Przedszkola | D43: 158800 | E43: 158800 | F43: 154100 | G43: 139900 | H43: 14200 | I43: 0 | J43: 4700
B44: 80106 | C44: Inne formy wychowania przedszkolnego | D44: 353900 | E44: 353900 | F44: 338900 | G44: 270500 | H44: 68400 | J44: 15000
B45: 80110 | C45: Gimnazja | D45: 2296400 | E45: 2296400 | F45: 2204400 | G45: 1526000 | H45: 678400 | I45: 0 | J45: 92000
B46: 80113 | C46: Dowożenie uczniów do szkół | D46: 322600 | E46: 322600 | F46: 322600 | G46: 69600 | H46: 253000
B47: 80146 | C47: Dokształcanie i doskonalenie nauczycieli | D47: 8500 | E47: 8500 | F47: 8500 | G47: 0 | H47: 8500
B48: 80150 | C48: Realizacja zadań wymagających stosowania specjalnej organizacji nauki i metod pracy dla dzieci i młodzieży w szkołach podstawowych, gimnazjach, liceach ogólnokształcących, liceach profilowanych i szkołach zawodowych oraz szkołach artystycznych | D48: 44000 | E48: 44000 | F48: 41000 | G48: 39400 | H48: 1600 | J48: 3000
B49: 80195 | C49: Pozostała działalność | D49: 57800 | E49: 57800 | F49: 57800 | G49: 0 | H49: 57800
A50: 851 | C50: Ochrona zdrowia | D50: =SUM(D51:D52) -> 65000 | E50: 65000 | F50: 55000 | G50: 26100 | H50: 28900 | I50: 10000
B51: 85153 | C51: Zwalczanie narkomanii | D51: 4000 | E51: 4000 | F51: 4000 | G51: 0 | H51: 4000
B52: 85154 | C52: Przeciwdziałanie alkoholizmowi | D52: 61000 | E52: 61000 | F52: =SUM(G52+H52) -> 51000 | G52: 26100 | H52: 24900 | I52: 10000
A53: 852 | C53: Pomoc społeczna | D53: =SUM(D54:D63) -> 3129444 | E53: 3129444 | F53: 725830 | G53: 534588 | H53: 191242 | I53: 0 | J53: 2403614
B54: 85202 | C54: Domy pomocy społecznej | D54: 86000 | E54: 86000 | F54: 86000 | G54: 0 | H54: 86000
B55: 85212 | C55: Świadczenia rodzinne , świadczenia z funduszu alimentacyjnego oraz składki na ubezpieczenia emerytalne i rentowe z ubezpieczenia społecznego | D55: 2361122 | E55: 2361122 | F55: =SUM(G55+H55) -> 219742 | G55: 200161 | H55: 19581 | I55: 0 | J55: 2141380
B56: 85213 | C56: Składki na ubezpieczenia zdrowotne opłacane za osoby pobierające niektóre świadczenia z pomocy społecznej, niektóre świadczenia rodzinne oraz za osoby uczestniczące w zajęciach w centrum integracji społecznej | D56: 15501 | E56: 15501 | F56: =SUM(G56+H56) -> 15501 | G56: 0 | H56: 15501
B57: 85214 | C57: Zasiłki i pomoc w naturze oraz składki na ubezpieczenia emerytalne i rentowe | D57: 116674 | E57: 116674 | F57: =SUM(G57+H57) -> 0 | I57: 0 | J57: 116674
B58: 85215 | C58: Dodatki mieszkaniowe | D58: 2000 | E58: 2000 | F58: 0 | I58: 0 | J58: 2000
B59: 85216 | C59: Zasiłki stałe | D59: 64585 | E59: 64585 | F59: 0 | I59: 0 | J59: 64585
B60: 85218 | C60: Powiatowe centra pomocy rodzinie | D60: 8000 | E60: 8000 | F60: 8000 | G60: 0 | H60: 8000
B61: 85219 | C61: Ośrodki pomocy społecznej | D61: 391157 | E61: 391157 | F61: 387757 | G61: 325747 | H61: 62010 | I61: 0 | J61: 3400
B62: 85228 | C62: Usługi opiekuńcze i specjalistyczne usługi opiekuńcze | D62: 8830 | E62: 8830 | F62: 8830 | G62: 8680 | H62: 150
B63: 85295 | C63: Pozostała działalność | D63: 75575 | E63: 75575 | F63: 0 | I63: 0 | J63: 75575
A64: 900 | C64: Gospodarka komunalna i ochrona środowiska | D64: =SUM(D65:D70) -> 1679400 | E64: =SUM(E65:E70) -> 765400 | F64: =SUM(F65:F70) -> 585400 | G64: =SUM(G65:G70) -> 49200 | H64: =SUM(H65:H70) -> 536200 | I64: =SUM(I65:I70) -> 180000 | J64: 0 | K64: 0 | L64: 0 | N64: 914000 | O64: 914000 | P64: 850000
B65: 90001 | C65: Gospodarka ściekowa i ochrona wód | D65: 1094000 | E65: 180000 | G65: 0 | H65: 0 | I65: 180000 | N65: 914000 | O65: 914000 | P65: 850000
B66: 90002 | C66: Gospodarka odpadami | D66: 289200 | E66: 289200 | F66: =SUM(G66+H66) -> 289200 | G66: 49200 | H66: 240000
B67: 90003 | C67: Oczyszczanie miast i wsi | D67: 6000 | E67: 6000 | F67: =SUM(G67+H67) -> 6000 | G67: 0 | H67: 6000
B68: 90015 | C68: Oświetlenia ulic, placów i dróg | D68: 219700 | E68: 219700 | F68: =SUM(G68+H68) -> 219700 | G68: 0 | H68: 219700
B69: 90019 | C69: Wpływy i wydatki związane z gromadzeniem środków z opłat i kar za korzystanie ze środowiska | D69: 30000 | E69: 30000 | F69: =SUM(G69+H69) -> 30000 | G69: 0 | H69: 30000
B70: 90095 | C70: Pozostała działalność | D70: 40500 | E70: 40500 | F70: =SUM(G70+H70) -> 40500 | G70: 0 | H70: 40500
A71: 921 | C71: Kultura i ochrona dziedzictwa naturalnego | D71: =SUM(D72:D73) -> 298000 | E71: 298000 | F71: 18000 | G71: 0 | H71: 18000 | I71: 280000 | N71: =SUM(N72:N73) -> 0 | O71: =SUM(O72:O73) -> 0 | P71: =SUM(P72:P73) -> 0
B72: 92116 | C72: Biblioteki | D72: 280000 | E72: 280000 | H72: 0 | I72: 280000
B73: 92195 | C73: Pozostała działalność | D73: 18000 | E73: 18000 | F73: 18000 | G73: 0 | H73: 18000 | N73: 0 | O73: 0 | P73: 0
A74: 926 | C74: Kultura fizyczna i sport | D74: =SUM(D75:D76) -> 70843 | E74: 70843 | F74: 35843 | G74: 0 | H74: 35843 | I74: 35000
B75: 92605 | C75: Zadania w zakresie kultury fizycznej | D75: 40843 | E75: 40843 | F75: =SUM(G75+H75) -> 5843 | G75: 0 | H75: 5843 | I75: 35000
B76: 92695 | C76: Pozostała działalność | D76: 30000 | E76: 30000 | F76: =SUM(G76+H76) -> 30000 | G76: 0 | H76: 30000
A77: Ogółem wydatki | D77: =SUM(D9+D13+D15+D20+D22+D25+D31+D33+D36+D38+D40+D50+D53+D64+D71+D74) -> 19530000 | E77: =SUM(E9+E13+E15+E20+E22+E25+E31+E33+E36+E38+E40+E50+E53+E64+E71+E74) -> 13896000 | F77: 9819586 | G77: 6874718 | H77: 2944868 | I77: 1084000 | J77: 2812414 | K77: 0 | L77: 0 | M77: 180000 | N77: 5634000 | O77: 5634000 | P77: 5520000 | Q77: 0

Sheet 3
A1: Limity wydatków na wieloletnie przedsięwzięcia planowane do poniesienia w 2016 roku
A3: Lp. | B3: Dział | C3: Rozdz. | D3: Nazwa przedsięwzięcia | E3: Łączne nakłady finansowe | F3: Planowane wydatki | L3: Jednostka org. realizująca zadanie lub koordynująca program
F4: rok budżetowy 2016 (7+8+10+11) | G4: w tym źródła finansowania
G5: dochody własne jst | H5: kredyty i pożyczki | I5: w tym: | J5: dotacje i środki pochodzące z innych źr.* | K5: środki wymienione w art. 5 ust. 1 pkt 2 i 3 u.f.p.
I6: kredyty i pożyczki zaciągnięte na realizację zadania pod refundację wydatków
A9: 1 | B9: 2 | C9: 3 | D9: 4 | E9: 5 | F9: 6 | G9: 7 | H9: 8 | I9: 9 | J9: 10 | K9: 11 | L9: 12
D10: wydatki majątkowe
A11: 1. | B11: 010 | C11: 01010 | D11: Budowa kanalizacji sanitarnej w miejscowościach Występa, Zalezianka, Stawik , Jaśle 2009-2018 | E11: 12000000 | F11: 4000000 | H11: 1200000 | K11: 2800000 | L11: Urząd Gminy
A12: 2. | B12: 010 | C12: 01010 | D12: Budowa kanalizacji sanitarnej w miejscowości Podzagnańszcze 2016-2022 | E12: 3900000 | F12: 0 | L12: Urząd Gminy
A13: 3. | B13: 900 | C13: 9001 | D13: Remont istniejącej oczyszczalni ścieków w Kamionkach poprzez dostawę i montaż urządzeń ( dotacja ) 2014-2016 | E13: 220650 | F13: 64000 | G13: 64000 | L13: Zakład Gospodarki Komunalnej w Łącznej
A14: 4. | B14: 900 | C14: 90001 | D14: Rozbudowa istniejącej oczyszczalni ścieków w Kamionkach 2016-2017 | E14: 1700000 | F14: 850000 | H14: 255000 | K14: 595000 | L14: Urząd Gminy
D15: razem:
A16: Ogółem | E16: =SUM(E11:E15) -> 17820650 | F16: =SUM(F11+F13+F14) -> 4914000 | G16: 64000 | H16: 1455000 | I16: 0 | J16: 0 | K16: 3395000

Sheet 4
A1: Zadania inwestycyjne roczne w 2016 r.
K2: w złotych
A3: Lp. | B3: Dział | C3: Rozdz. | D3: Nazwa zadania inwestycyjnego | E3: Planowane wydatki | K3: Jednostka org. realizująca zadanie lub koordynująca program
E4: rok budżetowy 2016 (6+7+9+10) | F4: w tym źródła finansowania
F5: dochody własne jst | G5: kredyty i pożyczki | H5: w tym: | I5: dotacje i środki pochodzące z innych źr.* | J5: środki wymienione w art. 5 ust. 1 pkt 2 i 3 u.f.p.
H6: kredyty i pożyczki zaciągnięte na realizację zadania pod refundację wydatków
A9: 1 | B9: 2 | C9: 3 | D9: 4 | E9: 5 | F9: 6 | G9: 7 | H9: 8 | I9: 9 | J9: 10 | K9: 11
B10: 010 | C10: 01010 | D10: Modernizacja ujęcia wody Czerwona Górka | E10: 40000 | F10: 40000 | K10: Urząd Gminy Łączna
A11: 1. | B11: 600 | C11: 60016 | D11: Budowa wiat przystankowych | E11: 10000 | F11: 10000 | K11: Urząd Gminy Łączna
A12: 2. | B12: 600 | C12: 60016 | D12: Przebudowa drogi gminnej nr 1516017 w miejscowości Czerwona Górka | E12: 670000 | G12: 220000 | J12: 450000 | K12: Urząd Gminy Łączna
A13: Ogółem | E13: =SUM(E10:E12) -> 720000 | F13: =SUM(F10:F12) -> 50000 | G13: =SUM(G12:G12) -> 220000 | J13: =SUM(J12:J12) -> 450000 | K13: x

Sheet n.
G1: Załącznik Nr 4
G2: do Uchwały Nr……………
G3: Rady Gminy Łączna
G4: z dnia …………………..
A7: Wydatki na programy i projekty realizowane ze środków pochodzących z budżetu Unii Europejskiej oraz innych źródeł zagranicznych, niepodlegających zwrotowi na 2016 rok
A10: L.p. | B10: Projekt | C10: Okres realizacji zadania | D10: Jednostka org. realizująca zadanie lub koordynująca program | E10: Dział | F10: Rozdział | G10: Przewidywane nakłady i źródła finansowania | I10: Wydatki w roku budżetowym 2016
G11: źródło | H11: kwota
A12: 1 | B12: 2 | C12: 3 | D12: 4 | E12: 5 | F12: 6 | G12: 7 | H12: 8 | I12: 9
A13: 1. | B13: Program: PROW | C13: 2009-2015 | D13: Urząd Gminy | E13: 010 | F13: 01010 | G13: Wartość zadania: | H13: =SUM(H18) -> 5100000 | I13: =SUM(I18) -> 1994229
B14: Priorytet: | G14: Wydatki bieżące:
B15: Działanie:3.2.1 Podstawowe usługi dla gospodarki i ludności wiejskiej | G15: - środki z budżetu j.s.t.
B16: Projekt: "Budowa kanalizacji sanitarnej w miejscowościach Gózd i Łączna". | G16: - środki z budżetu krajowego
G17: - środki z UE oraz innych źródeł zagranicznych
G18: Wydatki majątkowe: | H18: =SUM(H19:H21) -> 5100000 | I18: =SUM(I19:I21) -> 1994229
G19: - środki z budżetu j.s.t. | H19: 2550000 | I19: 795000
G20: - środki z budżetu krajowego
G21: - środki z UE oraz innych źródeł zagranicznych | H21: 2550000 | I21: 1199229
G22: w tym: kredyty i pożyczki zaciągane na wydatki refundowane ze środków UE
A23: 2. | B23: Program: Regionalny Program Operacyjny Województwa Świętokrzyskiego | C23: 2007-2015 | D23: Urząd Gminy | E23: 720 | F23: 72095 | G23: Wartość zadania: | H23: =SUM(H28) -> 259862.8 | I23: =SUM(I28) -> 214603
B24: Priorytet:Wspieranie innowacyjności, budowa społeczeństwa informacyjnego oraz wzrost potencjału | G24: Wydatki bieżące:
B25: Działanie:2.2 Budowa infrastruktury społeczeństwa infromacyjnego | G25: - środki z budżetu j.s.t.
B26: Projekt:"e- świętokrzyskie Rozbudowa Infrastruktury Informatycznej jst 2007-2013" | G26: - środki z budżetu krajowego
G27: - środki z UE oraz innych źródeł zagranicznych
G28: Wydatki majątkowe: | H28: =SUM(H29:H31) -> 259862.8 | I28: =SUM(I29:I32) -> 214603
G29: - środki z budżetu j.s.t. | H29: 8623.16 | I29: 32191
G30: - środki z budżetu krajowego
G31: - środki z UE oraz innych źródeł zagranicznych | H31: 251239.64 | I31: 182412
G32: w tym: kredyty i pożyczki zaciągane na wydatki refundowane ze środków UE
A34: 3. | B34: Program: Regionalny Program Operacyjny Województwa Świętokrzyskiego | C34: 2007-2015 | D34: Urząd Gminy | E34: 720 | F34: 72095 | G34: Wartość zadania: | H34: 85000 | I34: =SUM(I39) -> 36789
B35: Priorytet:Wspieranie innowacyjności, budowa społeczeństwa informacyjnego oraz wzrost potencjału | G35: Wydatki bieżące:
B36: Działanie:2.2 Budowa infrastruktury społeczeństwa infromacyjnego | G36: - środki z budżetu j.s.t.
B37: Projekt:"e- świętokrzyskie Budowa Systemu Informacji Przestrzennej Województwa Świętokrzyskiego" jst 2007-2013" | G37: - środki z budżetu krajowego
G38: - środki z UE oraz innych źródeł zagranicznych
G39: Wydatki majątkowe: | H39: =SUM(H34:H38) -> 85000 | I39: =SUM(I40:I42) -> 36789
G40: - środki z budżetu j.s.t. | H40: 20000 | I40: 5518
G41: - środki z budżetu krajowego
G42: - środki z UE oraz innych źródeł zagranicznych | H42: =SUM(I42) -> 31271 | I42: 31271
G43: w tym: kredyty i pożyczki zaciągane na wydatki refundowane ze środków UE
A44: 4. | B44: Program: Operacyjny Kapitał Ludzki | C44: 2013-2015 | D44: Urząd Gminy | E44: 853 | F44: 85395 | G44: Wartość zadania: | H44: =SUM(H45+H49) -> 571113 | I44: =SUM(I45+I49) -> 190343.88
B45: Priorytet: Rozwój wykształcenia i kompetencji w regionie | G45: Wydatki bieżące: | H45: =SUM(H46:H48) -> 533113 | I45: =SUM(I46:I48) -> 190343.88
B46: Działanie: 9.1 Wyrównanie szans edukacyjnych i zapewnienie wysokiej jakości usług edukacyjnych świadczonych w systemie oświaty | G46: - środki z budżetu j.s.t.
B47: Projekt: Wyrównywanie szans w Gminie Łączna | G47: - środki z budżetu krajowego | H47: 79966.95 | I47: 28916.55
G48: - środki z UE oraz innych źródeł zagranicznych | H48: 453146.05 | I48: 161427.33
G49: Wydatki majątkowe: | H49: =SUM(H50:H52) -> 38000 | I49: =SUM(I50:I52) -> 0
G50: - środki z budżetu j.s.t.
G51: - środki z budżetu krajowego | H51: 5700
G52: - środki z UE oraz innych źródeł zagranicznych | H52: 32300
G53: w tym: kredyty i pożyczki zaciągane na wydatki refundowane ze środków UE
A54: 5. | B54: Program: Operacyjny Kapitał Ludzki | C54: 2015 | D54: GOPS Łączna | E54: 853 | F54: 85395 | G54: Wartość zadania: | H54: =SUM(H55+H59) -> 94492 | I54: =SUM(I55+I59) -> 94491.55
B55: Priorytet: Promocja integracji społecznej | G55: Wydatki bieżące: | H55: =SUM(H56:H58) -> 94492 | I55: =SUM(I56:I58) -> 94491.55
B56: Działanie: 7.1 Rozwój i upowszechnianie aktywnej integracji | E56: 852 | F56: 85214 | G56: - środki z budżetu j.s.t. | H56: 9922 | I56: 9922
B57: Projekt: Dziś szansą na lepsze jutro | G57: - środki z budżetu krajowego | H57: 4253.85 | I57: 4251.35
G58: - środki z UE oraz innych źródeł zagranicznych | H58: 80316.15 | I58: 80318.2
G59: Wydatki majątkowe:
G60: - środki z budżetu j.s.t.
G61: - środki z budżetu krajowego
G62: - środki z UE oraz innych źródeł zagranicznych
G63: w tym: kredyty i pożyczki zaciągane na wydatki refundowane ze środków UE
B65: Ogółem wydatki | H65: =SUM(H66+H74) -> 6066816.8 | I65: =SUM(I66+I74) -> 2520534.43
B66: Wydatki bieżące: | H66: =SUM(+H68+H69+H67) -> 617683 | I66: =SUM(+I68+I69+I67) -> 274913.43
B67: - środki z budżetu j.s.t. | H67: =SUM(H46) -> 0 | I67: =SUM(I46) -> 0
B68: - środki z budżetu krajowego | H68: =SUM(H47+H57) -> 84220.8 | I68: =SUM(I47+I57) -> 33167.9
B69: - środki z UE oraz innych źródeł zagranicznych | H69: =SUM(H48+H58) -> 533462.2 | I69: =SUM(I48+I58) -> 241745.53
B73: w tym: kredyty i pożyczki zaciągane na wydatki refundowane ze środków UE
B74: Wydatki majątkowe: | G74: 0 | H74: =SUM(H75:H77) -> 5449133.8 | I74: =SUM(I75:I77) -> 2245621
B75: - środki z budżetu j.s.t. | H75: =SUM(H19+H29+H40) -> 2578623.16 | I75: =SUM(I19+I29+I40) -> 832709
B76: - środki z budżetu krajowego | H76: =SUM(H51) -> 5700 | I76: =SUM(I51) -> 0
B77: - środki z UE oraz innych źródeł zagranicznych | H77: =SUM(H42+H31+H21+H52) -> 2864810.64 | I77: =SUM(I42+I31+I21) -> 1412912
B78: w tym: kredyty i pożyczki zaciągane na wydatki refundowane ze środków UE

Sheet 5
A1: Przychody i rozchody budżetu w 2016 r.
D3: w złotych
A4: Lp. | B4: Treść | C4: Klasyfikacja § | D4: Kwota 2016 r.
A7: 1 | B7: 2 | C7: 3 | D7: 4
A8: Przychody ogółem: | D8: =SUM(D10:D21) -> 2250000
A9: I | B9: Kredyty i pożyczki | D9: =SUM(D10) -> 2250000
A10: 1. | B10: Kredyty | C10: § 952 | D10: 2250000
A11: 1.1 | B11: Kredyty zaciągnięte w związku z umową zawartą z podmiotem dysponującym środkami pochodzącymi z budżetu U.E. | C11: § 952
A12: 2. | B12: Pożyczki | C12: § 952
A13: 3. | B13: Pożyczki na finansowanie zadań realizowanyz udziałem środków pochodzących z budżetu U.E. | C13: § 903
A14: 4. | B14: Papiery wartościowe ( obligacje) których zbywalność jest ograniczona | C14: § 931
A15: 4.1 | B15: Papiery wartościowe ( obligacje) których zbywalność jest ograniczona, emitowane w związku z umową zawartą z podmiotem dysponującym środkami pochodzącymi z budżetu U. E | C15: § 931
A16: 5. | B16: Papiery wartościowe ( obligacje) dopuszczone do obrotu zorganizowanego, czyli takie, dla których istnieje płynny rynek wtórny | C16: § 931
A17: 6. | B17: Nadwyżka z lat ubiegłych | C17: § 957
A18: 7. | B18: Wolne środki art. 217 ust.2 pkt.6 u.f.p | C18: § 950
A19: 8. | B19: Spłata pożyczek udzielonych | C19: § 951
A20: 9. | B20: Przelewy z rachunku lokat | C20: § 994
A21: 10. | B21: Prywatyzacja majątku j.s.t | C21: § 941 -44
A22: Rozchody ogółem: | D22: =SUM(D23:D25) -> 950000
A23: 1. | B23: Spłaty kredytów | C23: § 992 | D23: 810181
A24: 1.1 | B24: Spłaty kredytów zaciągniętych w związku z zawarciem umowy z podmiotem dysponującym środkami pochodzącymi z budżetu U. E | C24: § 992
A25: 2. | B25: Spłaty pożyczek | C25: § 992 | D25: 139819
A26: 3. | B26: Spłaty pożyczek na finansowanie zadań realizowanych z udziałem środków pochodzących z budżetu U. E | C26: § 963
A27: 4. | B27: Wykup obligacji komunalnych, których zdolność jest ograniczona | C27: § 982
A28: 4.1 | B28: Wykup obligacji komunalnych, których zdolność jest ograniczona w związku z zawarciem umowy z podmiotem dysponującym środkami pochodzącymi z budżetu U.e | C28: § 982
A29: 5. | B29: Wykup papierów wartościowych dopuszczonych do obrotu zorganizowanego, czyli takie, dla których istnieje płynny rynek wtórny. | C29: § 982
A30: 6. | B30: Udzielone pozyczki | C30: § 991
A31: 7. | B31: Przelewy na rachunki lokat | C31: § 994

Sheet 6
A1: Dochody i wydatki związane z realizacją zadań z zakresu administracji rządowej i innych zadań zleconych odrębnymi ustawami w 2016 r.
A4: Dział | B4: Rozdział | C4: § | D4: Dotacje ogółem | E4: Wydatki na 2016 r. | F4: z tego:
F5: Wydatki bieżące | G5: z tego: | L5: Wydatki majątkowe | M5: z tego:
G6: Wydatki jednostek budżetowych | I6: Dotacje na zadania bieżące | J6: Świadczenia na rzecz osób fizycznych | K6: Wydatki na programy finansowane z udziałem środków, o których mowa w art. 5 ust. 1 pkt 2 i 3 | M6: inwestycje i zakupy inwestycyjne | N6: w tym:
G7: wynagrodzenia i składki od nich naliczane | H7: wydatki związane z realizacją statutowych zadań | N7: wydatki na programy finansowane z udziałem środków, o których mowa w art. 5 ust. 1 pkt 2 i 3
A8: 1 | B8: 2 | C8: 3 | D8: 4 | E8: 5 | F8: 6 | G8: 7 | H8: 8 | I8: 9 | J8: 10 | K8: 11 | L8: 12 | M8: 13 | N8: 14
A9: 750 | B9: 75011 | C9: 2010 | D9: 47151 | E9: 47151 | F9: =SUM(E9) -> 47151 | G9: =SUM(F9) -> 47151
A10: 751 | B10: 75101 | C10: 2010 | D10: 1079 | E10: 1079 | F10: 1079 | G10: 1079
A11: 852 | B11: 85212 | C11: 2010 | D11: 2348122 | E11: 2348122 | F11: 2348122 | G11: 200161 | H11: 6581 | J11: 2141380
A12: 852 | B12: 85213 | C12: 2010 | D12: 6561 | E12: 6561 | F12: 6561 | H12: 6561
A13: Ogółem | D13: =SUM(D9:D12) -> 2402913 | E13: 2402913 | F13: 2402913 | G13: 248391 | H13: 13142 | I13: 0 | J13: 2141380

Sheet n
A1: Dochody i wydatki związane z realizacją zadań z zakresu administracji rządowej realizowanych na podstawie porozumień z organami administracji rządowej w 2011 r.
P3: w złotych
A4: Dział | B4: Rozdział | C4: § | D4: Dotacje ogółem | E4: Wydatki na 2011 r. | F4: z tego:
F5: Wydatki bieżące | G5: z tego: | L5: Wydatki majątkowe | M5: z tego:
G6: Wydatki jednostek budżetowych | I6: Dotacje na zadania bieżące | J6: Świadczenia na rzecz osób fizycznych | K6: Wydatki na programy finansowane z udziałem środków, o których mowa w art. 5 ust. 1 pkt 2 i 3 | M6: inwestycje i zakupy inwestycyjne | N6: w tym: | O6: zakup i objęcie akcji i udziałów | P6: wniesienie wkładów do spółek prawa handlowego
G7: wynagrodzenia i składki od nich naliczane | H7: wydatki związane z realizacją statutowych zadań | N7: wydatki na programy finansowane z udziałem środków, o których mowa w art. 5 ust. 1 pkt 2 i 3
A8: 1 | B8: 2 | C8: 3 | D8: 4 | E8: 5 | F8: 6 | G8: 7 | H8: 8 | I8: 9 | J8: 10 | K8: 11 | L8: 12 | M8: 13 | N8: 14 | O8: 15 | P8: 16
A21: Ogółem

Sheet n..
A2: Dochody i wydatki związane z realizacją zadań realizowanych na podstawie porozumień (umów) między jednostkami samorządu terytorialnego w 2016 r.
T4: w złotych
A5: Nazwa zadania | B5: Dział | C5: Rozdział | D5: Dochody ogółem | E5: § | F5: Wydatki ogółem | G5: § | H5: z tego:
H6: Wydatki bieżące | I6: z tego: | P6: Wydatki majątkowe | Q6: z tego:
I7: Wydatki jednostek budżetowych | K7: Dotacje na zadania bieżące | L7: Świadczenia na rzecz osób fizycznych | M7: Wydatki na programy finansowane z udziałem środków, o których mowa w art. 5 ust. 1 pkt 2 i 3 | N7: Wydatki na obsługę długu (odsetki) | O7: Wydatki z tytułu poręczeń i gwarancji | Q7: inwestycje i zakupy inwestycyjne | R7: w tym: | S7: zakup i objęcie akcji i udziałów | T7: wniesienie wkadów do spółek prawa handlowego
I8: wynagrodzenia i składki od nich naliczane | J8: wydatki związane z realizacją statutowych zadań | R8: wydatki na programy finansowane z udziałem środków, o których mowa w art. 5 ust. 1 pkt 2 i 3
A9: 1 | B9: 2 | C9: 3 | D9: 4 | E9: 5 | F9: 6 | G9: 7 | H9: 8 | I9: 9 | J9: 10 | K9: 11 | L9: 12 | M9: 13 | N9: 14 | O9: 15 | P9: 16 | Q9: 17 | R9: 18 | S9: 19 | T9: 20
A10: I. Dochody i wydatki związane z realizacją zadań realizowanych wspólnie z innymi jednostkami samorządu terytorialnego
A12: II. Dochody i wydatki związane z pomocą rzeczową lub finansową realizowaną na podstawie porozumień między j.s.t.
A13: Przebudowa drogi powiatowej w miejscowości Występa | B13: 600 | C13: 60014 | D13: 6300
A14: Ogółem | F14: =SUM(F11:F13) -> 0 | P14: =SUM(P11:P13) -> 0 | Q14: =SUM(Q11:Q13) -> 0

Sheet 7
A1: Plan przychodów i kosztów samorządowych zakładów budżetowych na 2016 r.
O4: w złotych
A5: Lp. | B5: Wyszczególnienie | C5: Dział | D5: Rozdział | E5: Stan środków obrotowych na początek roku | F5: Przychody | L5: Wydatki | O5: Stan środków obrotowych na koniec roku
F6: ogółem | G6: w tym: dotacja z budżetu | L6: ogółem | M6: w tym:
G7: przedmiotowa | I7: na pierwsze wyposażenie | J7: celowa na zadania realizowane z udziałem środków UE | K7: celowa na inwestycje | M7: wpłata do budżetu | N7: wydatki majątkowe
G8: kwota netto | H8: VAT
A9: 1 | B9: 2 | C9: 3 | D9: 4 | E9: 5 | F9: 6 | G9: 7 | H9: 8 | I9: 9 | J9: 10 | K9: 11 | L9: 12 | M9: 13 | N9: 14 | O9: 15
A10: 1. | B10: Dostarczanie ciepła | C10: 400 | D10: 40001 | E10: 0 | F10: 309300 | L10: 309200 | O10: 100
A11: 2. | B11: Dostarczanie wody | C11: 400 | D11: 40002 | E11: 0 | F11: 613300 | G11: 110000 | H11: 9000 | L11: 613200 | O11: 100
A12: 3 | B12: Zimowe utrzymanie dróg gminnych | C12: 600 | D12: 60016 | E12: 0 | F12: 80000 | G12: 74000 | H12: 6000 | L12: 80000 | O12: 0
A13: 4. | B13: Gospodarka ściekowa i ochrona wód | C13: 900 | D13: 90001 | E13: 0 | F13: 339000 | G13: 167000 | H13: 13000 | L13: 338900 | O13: 100
A14: 5. | B14: Zakład Gospodarki Komunalnej | C14: 900 | D14: 90017 | E14: 0 | F14: 72400 | L14: 72300 | O14: 100
A15: Ogółem | F15: =SUM(F10:F14) -> 1414000 | G15: =SUM(G11:G14) -> 351000 | H15: =SUM(H11:H14) -> 28000 | L15: =SUM(L10:L14) -> 1413600 | O15: =SUM(O10:O14) -> 400

Sheet 8
A1: Plan dochodów gromadzonych na wydzielonym rachunku jednostki budżetowej wydatki nimi finansowane w 2016 r.
H4: w złotych
A5: Lp. | B5: Wyszczególnienie | C5: Dział | D5: Rozdział | E5: Stan środków finansowych na początek roku | F5: Dochody | G5: Wydatki | H5: Stan środków finansowych na koniec roku
A6: 1 | B6: 2 | C6: 3 | D6: 4 | E6: 5 | F6: 6 | G6: 7 | H6: 8
A7: 1. | B7: Zespół Szkół w Łącznej | C7: 801 | D7: 80110 | E7: 0 | F7: 150020 | G7: 150020 | H7: 0
A8: 2. | B8: Szkoła Podstawowa w Goździe | C8: 801 | D8: 80101 | E8: 0 | F8: 5010 | G8: 5010 | H8: 0
A9: 3. | B9: Przedszkole w Goździe | C9: 801 | D9: 80104 | E9: 0 | F9: 15000 | G9: 15000 | H9: 0
A10: Ogółem | E10: 0 | F10: =SUM(F7:F9) -> 170030 | G10: =SUM(G7:G9) -> 170030 | H10: 0

Sheet 9
F1: Załącznik Nr 9
E2: do Uchwały Nr ……………….
F3: Rady Gminy Łączna
E4: z dnia …………....
A6: Dotacje przedmiotowe w 2016 roku
F7: w złotych
A8: Lp. | B8: Dział | C8: Rozdział | D8: Nazwa jednostki otrzymującej dotacje | E8: Zakres | F8: Ogółem kwota dotacji
A9: 1 | B9: 2 | C9: 3 | D9: 4 | E9: 5 | F9: 6
A10: I. Dotacje dla jednostek sektora finansów publicznych | F10: =SUM(F15) -> 379000
A11: 1. | B11: 400 | C11: 40002 | D11: Zakład Gospodarki Komunalnej w Łącznej | E11: dopłata do cen wody | F11: 119000
A12: 2. | B12: 900 | C12: 90001 | D12: Zakład Gospodarki Komunalnej w Łącznej | E12: dopłata do cen ścieków | F12: 180000
A13: 3. | B13: 600 | C13: 60016 | D13: Zakład Gospodarki Komunalnej w Łącznej | E13: dopłata do odśnieżania 1 km drogi | F13: 80000
A14: II. Dotacje dla jednostek spoza sektora finansów publicznych
A15: Ogółem | F15: =SUM(F11:F14) -> 379000

Sheet 10
E2: Załącznik Nr 10
E3: do Uchwały Nr…..
E4: Rady Gminy Łączna
E5: z dnia……….
A7: Dotacje podmiotowe w 2016 roku
E8: w złotych
A9: Lp. | B9: Dział | C9: Rozdział | D9: Nazwa jednostki otrzymującej dotacje | E9: Kwota dotacji
A10: 1 | B10: 2 | C10: 3 | D10: 4 | E10: 5
A11: I. Dotacje dla jednostek sektora finansów publicznych
A12: 1. | B12: 921 | C12: 92116 | D12: Gminna Instytucja kultury - biblioteka gminna w Łącznej | E12: 280000
A13: II.Dotacje dla jednostek spoza sektora finansów publicznych
A14: 1. | B14: 801 | C14: 80101 | D14: Stowarzyszenie Rozwoju Społecznego "Zalezianka" | E14: 380000
A15: Ogółem | E15: =SUM(E12:E14) -> 660000

Sheet 11
F1: Załącznik nr 11
F2: do Uchwały nr …..
F3: Rady Gminy Łączna
F4: z dnia ……..
A7: Dotacje celowe w 2016 roku
G8: w złotych
A9: Lp. | B9: Dział | C9: Rozdział | D9: § | E9: Nazwa zadania | F9: Jednostka otrzymująca dotację | G9: Kwota dotacji
A10: 1 | B10: 2 | C10: 3 | E10: 4 | F10: 5 | G10: 6
A11: I. Dotacje dla jednostek sektora finansów publicznych
A12: 2. | B12: 900 | C12: 90001 | D12: 6210 | E12: zadanie pn. "Remont istniejącej oczyszczalni ścieków w Kamionkach poprzez dostawę i montaż urządzeń" | F12: Zakład Gospodarki Komunalnej w Łącznej | G12: 64000
A13: II. Dotacje dla jednostek spoza sektora finansów publicznych
A14: 1. | B14: 851 | C14: 85154 | D14: 2830 | E14: zorganizowanie wypoczynku letniego dla dzieci z rodzin, w których występuje problem alkoholowy | F14: wyłoniona w drodze konkursu | G14: 10000
A15: 2. | B15: 926 | C15: 92605 | D15: 2830 | E15: zadania z zakresu kultury fizycznej i sportu | F15: wyłoniona w drodze konkursu | G15: 35000
A16: Ogółem | G16: =SUM(G12:G15) -> 109000

Sheet 15n
A1: Zadania jednostek pomocnicznych w ramach funduszu sołeckiego
A2: w 2011 roku
A5: Lp. | B5: Nazwa zadania | C5: Jednostka budżetowa realizująca zadanie | D5: Dział | E5: Rozdział | F5: grupa wydatków | G5: kwota
A6: 1 | B6: 2 | C6: 3 | D6: 4 | E6: 5 | F6: 6 | G6: 7
B7: Sołectwo ………………………..
A10: Razem
B11: Sołectwo ………………………..
A14: Razem
A15: Ogółem

Sheet 16n
A1: Wykaz obowiązujących umów o partnerstwie publiczno-prywatnym
A2: Lp. | B2: Przedmiot umowy | C2: Strony umowy | D2: Okres wykonywania umowy | E2: Łączna kwota wydatków, w tym wydatki budżetu | F2: Łączne kwoty wydatków w poszczególnych latach, w tym kwota wydatków budżetu
A3: 1 | B3: 2 | C3: 3 | D3: 4 | E3: 5 | F3: 6
A4: 1.
A7: 2.
A10: 3.
A11: 4.

Sheet progn.dłu
J1: Zał . Nr 3 do wniosku o wydanie opinii
A3: L.p. | B3: Wyszczególnienie | D3: Prognoza długu - Przewidywane wykonanie na 31.12
C4: 2008 | D4: 2009 | E4: 2010 | F4: 2011 | G4: 2012 | H4: 2013 | I4: 2014 | J4: 2015 | K4: 2016 | L4: 2017 | M4: 2018 | N4: 2019
A5: 1 | B5: 2 | C5: 3 | D5: 4 | E5: 5 | F5: 6 | G5: 7 | H5: 8 | I5: 9 | J5: 10 | K5: 11
A6: 1 | B6: A. Dochody | C6: =SUM(C8+C13) -> 11435500 | D6: =SUM(D8+D13) -> 13710464 | E6: =SUM(E8+E13) -> 14652732.22 | F6: =SUM(F8+F13) -> 15317488.5 | G6: =SUM(G8) -> 12309755 | H6: =SUM(H8+H13) -> 12900000 | I6: =SUM(I8+I13) -> 12950000 | J6: =SUM(J8) -> 13130000 | K6: =SUM(K8) -> 13520000 | L6: =SUM(L8) -> 13520000 | M6: =SUM(M8) -> 13820000 | N6: =SUM(N8) -> 14000000
B7: z tego
A8: 2 | B8: A.1. Dochody bieżące | C8: =SUM(C10:C12) -> 11435500 | D8: =SUM(D9:D12) -> 11824921 | E8: 12430064.22 | F8: 12384103.5 | G8: =SUM(G10:G12) -> 12309755 | H8: 12400000 | I8: =SUM(I10:I12) -> 12950000 | J8: =SUM(J10:J12) -> 13130000 | K8: 13520000 | L8: =SUM(L10:L12) -> 13520000 | M8: 13820000 | N8: 14000000
B9: z tego
A10: 3 | B10: - dochody własne2) | C10: 3328733 | D10: 3955808 | E10: 3824059 | F10: 3351597 | G10: 3490300 | H10: 3330000 | I10: 3420000 | J10: 3510000 | K10: 3600000 | L10: 3650000 | M10: 3950000 | N10: 3980000
A11: 4 | B11: - subwencja ogólna | C11: 5356038 | D11: 5471053 | E11: 6167805 | F11: 6217765 | G11: 6363000 | H11: 6520000 | I11: 6600000 | J11: 6650000 | K11: 6700000 | L11: 6720000 | M11: 6720000 | N11: 6750000
A12: 5 | B12: - dotacje celowe na zadania bieżące | C12: 2750729 | D12: 2398060 | E12: 2318136 | F12: 2181638 | G12: 2456455 | H12: 2550000 | I12: 2930000 | J12: 2970000 | K12: 3220000 | L12: 3150000 | M12: 3150000 | N12: 3270000
A13: 6 | B13: A.2. Dochody majątkowe | C13: =SUM(C16) -> 0 | D13: =SUM(D14:D16) -> 1885543 | E13: =SUM(E16) -> 2222668 | F13: =SUM(F16) -> 2933385 | H13: 500000
B14: w tym
A15: 7 | B15: - dochody ze sprzedaży majątku | D15: 50200 | E15: 4180.33 | H15: 500000
A16: 8 | B16: - dotacje celowe na zadania inwestycyjne | C16: 0 | D16: 1835343 | E16: 2222668 | F16: 2933385
A17: 9 | B17: B. Wydatki | C17: =SUM(C19+C23) -> 11776658 | D17: 15355861 | E17: 15684556.35 | F17: 17451488.5 | G17: 11522555 | H17: 11940000 | I17: 11817432 | J17: 11997432 | K17: =SUM(K19+K23) -> 12740000 | L17: =SUM(L19+L23) -> 12855600 | M17: =SUM(M19+M23) -> 13510000 | N17: =SUM(N19+N23) -> 13617723
B18: z tego
A19: 10 | B19: B1. Wydatki bieżące | C19: 9471057 | D19: 10208326 | E19: 11374224.58 | F19: 11290365.5 | G19: 10795368 | H19: 10722568 | I19: 11000432 | J19: 11100000 | K19: 11500000 | L19: 11722592 | M19: 12146000 | N19: 12825000
B20: w tym
A21: 11 | B21: - wydatki na obsługę długu | C21: 71033.92 | D21: 49902 | E21: 143342.87 | F21: 220000 | G21: 264679 | H21: 200000 | I21: 162686 | J21: 118969 | K21: 64881 | L21: 56000 | M21: 46000 | N21: 25000
A22: 12 | B22: - wydatki z tytułu poręczeń i gwarancji | C22: 42468.15 | D22: 0 | E22: 0
A23: 13 | B23: B.2. Wydatki majątkowe | C23: 2305601 | D23: 5147535 | E23: 4310331.77 | F23: 6161123 | G23: 727187 | H23: 1217432 | I23: 817000 | J23: 897432 | K23: 1240000 | L23: 1133008 | M23: 1364000 | N23: 792723
A24: 14 | B24: C. Nadwyżka/ deficyt (A - B) | C24: =SUM(C6-C17) -> -341158 | D24: -1645397 | E24: -1031824.13 | F24: -2134000 | G24: 787200 | H24: 960000 | I24: 1132568 | J24: 1132568 | K24: 660000 | L24: 664400 | M24: 310000 | N24: 382277
A25: 15 | B25: D. Finansowanie | C25: =SUM(C26-C42) -> 615523 | D25: 1748365 | E25: 1233282.6 | F25: 2134000 | G25: -787200 | H25: -960000 | I25: -1132568 | J25: -1132568 | K25: -660000 | L25: -664400 | M25: -310000 | N25: -382277
A26: 16 | B26: D1 Przychody ogółem | C26: =SUM(C28+C40) -> 1544768 | D26: =SUM(D28+D40) -> 2574364 | E26: =SUM(E28+E40) -> 2023353 | F26: =SUM(F28:F40) -> 3247585 | G26: =SUM(G28+G40) -> 0 | H26: =SUM(H28+H40) -> 0 | I26: 0 | J26: 0 | K26: 0 | L26: 0 | M26: 0 | N26: 0
B27: z tego
A28: 17 | B28: Kredyty i pożyczki długoterminowe | C28: 1000000 | D28: 2300000 | E28: 1920385 | F28: 3040000 | G28: 0 | H28: 0 | I28: 0 | J28: 0 | K28: 0 | L28: 0 | M28: 0 | N28: 0
B29: w tym:
A30: 18 | B30: na realizację programów i projektów realizowanychz udziałem środków pochodzących z funduszy strukturalnych i Funduszu Spójności UE
A31: 19 | B31: Spłata pożyczek udzielonych
A32: 20 | B32: Nadwyżka z lat ubiegłych
A33: 21 | B33: Papiery wartościowe
B34: w tym:
A35: 22 | B35: na realizację programów i projektów realizowanychz udziałem środków pochodzących z funduszy strukturalnych i Funduszu Spójności UE
A36: 23 | B36: Obligacje jednostek samorzadowych oraz związków komunalnych
B37: w tym:
A38: 24 | B38: na realizację programów i projektów realizowanychz udziałem środków pochodzących z funduszy strukturalnych i Funduszu Spójności UE
A39: 25 | B39: Prywatyzacja majątku j.s.t.
A40: 26 | B40: Inne źródła | C40: 544768 | D40: 274364 | E40: 102968 | F40: 207585
A41: 27 | B41: Przychody z lokat
A42: 28 | B42: D2 Rozchody ogółem | C42: =SUM(C44) -> 929245 | D42: 825999 | E42: 790070.4 | F42: 1113585 | G42: =SUM(G44) -> 787200 | H42: =SUM(H44) -> 960000 | I42: 1132568 | J42: 1132568 | K42: =SUM(K44) -> 660000 | L42: =SUM(L44) -> 664400 | M42: =SUM(M44) -> 310000 | N42: =SUM(N44) -> 382277
B43: z tego
A44: 29 | B44: Spłaty kredytów i pożyczek długoterminowych | C44: 929245 | D44: 825999 | E44: 790070.4 | F44: 1113585 | G44: 787200 | H44: 960000 | I44: 1132568 | J44: 1132568 | K44: 660000 | L44: 664400 | M44: 310000 | N44: 382277
B45: w tym:
A46: 30 | B46: na realizację programów i projektów realizowanychz udziałem środków pochodzących z funduszy strukturalnych i Funduszu Spójności UE
A47: 31 | B47: Udzielone pożyczki
A48: 32 | B48: Lokaty w bankach
A49: 33 | B49: Wykup papierów wartościowych
B50: w tym:
A51: 34 | B51: na realizację programów i projektów realizowanychz udziałem środków pochodzących z funduszy strukturalnych i Funduszu Spójności UE
A52: 35 | B52: Wykup obligacji samorządowych
B53: w tym:
A54: 36 | B54: na realizację programów i projektów realizowanychz udziałem środków pochodzących z funduszy strukturalnych i Funduszu Spójności UE
A55: 37 | B55: Inne cele
A56: 38 | B56: E1. Dług na koniec roku | C56: =SUM(C58) -> 1779915.2 | D56: =SUM(D58) -> 2912270 | E56: =SUM(E58) -> 4042585 | F56: 5969000 | G56: =SUM(G58) -> 5241813 | H56: =SUM(H58) -> 4281813 | I56: 3149254 | J56: 2016677 | K56: 1356677 | L56: 692277 | M56: 382277 | N56: 0
B57: z tego
A58: 39 | B58: Zaciągnięte kredyty i pożyczki długoterminowe | C58: 1779915.2 | D58: 2912270 | E58: 4042585 | F58: =SUM(F56:F57) -> 5969000 | G58: 5241813 | H58: 4281813 | I58: 3149254 | J58: 2016677 | K58: 1356677 | L58: 692277 | M58: 382277 | N58: 0
B59: w tym:
A60: 40 | B60: na realizację programów i projektów realizowanychz udziałem środków pochodzących z funduszy strukturalnych i Funduszu Spójności UE | E60: 699000 | F60: 1400000
A61: 41 | B61: Wyemitowane papiery wartościowe
B62: w tym:
A63: 42 | B63: na realizację programów i projektów realizowanychz udziałem środków pochodzących z funduszy strukturalnych i Funduszu Spójności UE
A64: 43 | B64: Wyemitowane obligacje samorządowe
B65: w tym:
A66: 44 | B66: na realizację programów i projektów realizowanychz udziałem środków pochodzących z funduszy strukturalnych i Funduszu Spójności UE
A67: 45 | B67: Przyjęte depozyty3)
A68: 46 | B68: Wymagalne zobowiązania
B69: w tym:
A70: 47 | B70: z tytułu dostaw towarów i usług
A71: 48 | B71: z tytułu udzielonych poręczeń
A72: 49 | B72: Wskaźnik długu (poz.38 / poz.1) % | C72: =SUM(C56/C6*100) -> 15.56482183 | D72: 21.2412213 | E72: 27.58929147 | F72: 38.96852934 | G72: 42.58259405 | H72: 33.19234884 | I72: 24.31856371 | J72: 15.35930693 | K72: 10.0345932 | L72: 5.120392012 | M72: 2.766114327 | N72: 0
A73: 50 | B73: Wskaźnik długu bez UE (poz.38 - poz.40 - poz.42 - poz.44 / poz.1) % | C73: 15.56 | D73: 21.24 | E73: 24.13 | F73: 28.96 | G73: 37.74 | H73: 30.49 | I73: 21.08 | J73: 12.17 | K73: 3.47 | L73: 3.47 | M73: 3.47 | N73: 3.47
A74: 51 | B74: Wskaźnik długu do dochodów własnych (poz.38 / (poz.3+poz.6-poz.8)) % | C74: 53.47 | D74: 72.7 | E74: 110.27 | F74: 161.95 | G74: 133.1 | H74: 116 | I74: 79.84 | J74: 45.52 | K74: 12.92 | L74: 12.92 | M74: 12.92 | N74: 12.92
A75: 52 | B75: Wskaźnik długu bez UE do dochodów własnych ((poz.38 - poz.40 - poz.42 - poz.44) / (poz.3+poz.6-poz.8)) % | C75: 53.47 | D75: 72.7 | E75: 92 | F75: 120.18 | G75: 133.1 | H75: 116 | I75: 79.84 | J75: 45.52 | K75: 12.92 | L75: 12.92 | M75: 12.92 | N75: 12.92
A76: 53 | B76: E2. Zadłużenie w ciągu roku | C76: =SUM(C78) -> 1042747.07 | D76: 875901 | E76: 1001000 | F76: 1333585 | G76: 1051879 | H76: 1160000 | I76: 1295254 | J76: 1251536 | K76: 724881 | L76: 720400 | M76: 356000 | N76: 407277
B77: z tego, przypadające do spłaty w roku budżetowym
A78: 54 | B78: kredyty i pożyczki (kapitał + odsetki) | C78: 1042747.07 | D78: 875901 | E78: 1001000 | F78: 1333585 | G78: 1051879 | H78: 1160000 | I78: 1295254 | J78: 1251536 | K78: 724881 | L78: 720400 | M78: 356000 | N78: 407277
B79: w tym:
A80: 55 | B80: na realizację programów i projektów realizowanychz udziałem środków pochodzących z funduszy strukturalnych i Funduszu Spójności UE
A81: 56 | B81: wykup papierów wartościowych
B82: w tym:
A83: 57 | B83: na realizację programów i projektów realizowanychz udziałem środków pochodzących z funduszy strukturalnych i Funduszu Spójności UE
A84: 58 | B84: wykup obligacji samorządowych
B85: w tym:
A86: 59 | B86: na realizację programów i projektów realizowanychz udziałem środków pochodzących z funduszy strukturalnych i Funduszu Spójności UE
A87: 60 | B87: Potencjalne spłaty z tytułu udzielonych poręczeń4)
A88: 61 | B88: Wskaźnik zadłużenia (poz.53 / poz.1) % | C88: =SUM(C76/C6*100) -> 9.118508767 | D88: =SUM(D76/D6*100) -> 6.388558403 | E88: 6.79 | F88: =SUM(F76/F6*100) -> 8.706290199 | G88: =SUM(G76/G6*100) -> 8.545084772 | H88: =SUM(H76/H6*100) -> 8.992248062 | I88: =SUM(I76/I6*100) -> 10.00196139 | J88: =SUM(J76/J6*100) -> 9.531881188 | K88: 5.41 | L88: 5.33 | M88: 2.58 | N88: 2.91
A89: 62 | B89: Wskaźnik zadłużenia bez UE ((poz.53 - poz.55 - poz.57 - poz.59) / poz.1) % | C89: 9.12 | D89: 6.39 | E89: 6.79 | F89: 8 | G89: 11.35 | H89: 10.66 | I89: 10 | J89: 10 | K89: 10 | L89: 10 | M89: 10 | N89: 10
A90: 63 | B90: Wskaźnik zadłużenia do dochodów własnych (poz.53 / (poz.3+poz.6-poz.8)) % | C90: =SUM(C76/C10*100) -> 31.32564462 | D90: 21.86 | E90: 25.89 | F90: =SUM(F76/F10*100) -> 39.78953914 | G90: =SUM(G76/G10*100) -> 30.13720884 | H90: 34.83483483 | I90: 37.87292398 | J90: 35.6562963 | K90: 20.13558333 | L90: 19.7369863 | M90: 0 | N90: 0
A91: 64 | B91: Wskaźnik zadłużenia bez UE do dochodów własnych ((poz.53 - poz.55 - poz.57- poz.59) / (poz.3+poz.6-poz.8)) % | C91: 31.33 | D91: 21.86 | E91: 25.89 | F91: =SUM(F77/F11*100) -> 0 | G91: =SUM(G77/G11*100) -> 0 | H91: 0 | I91: 0 | J91: 0 | K91: 0 | L91: 0 | M91: 0 | N91: 0
A92: 66 | B92: pokrycie wydatków bieżących dochodami bieżącymi (poz.2 - poz.10) | C92: =SUM(C8-C19) -> 1964443 | D92: 1616595 | E92: 1055839.64 | F92: 1093738 | G92: 1514387 | H92: 1677432 | I92: 1949568 | J92: 2030000 | K92: 2020000 | L92: 1797408 | M92: 1674000 | N92: 1175000
A94: 1) - podać dane na poszczególne lata objęte spłatą całego zadłużenia
A95: 2) - w dochodach własnych należy uwzględnić dochody z innych źródeł
A96: 3) - depozyty przyjęte do budżetu
A97: 4) - jeśli z umowy poręczenia wynika, że poręczyciel ponosi odpowiedzialność za zobowiązania dłużnika wg obowiązaującego dłużnika harmonogramu spłaty należy w poszczególnych kolumnach wykazać kwoty przypadające do spłaty w kolejnych latach obowiązywania umowy w/g harmonogramu obowiązującego dłużnika. Jeśli natomiast z umowy poręczenia wynika, że cały kredyt / pożyczka może być postawiony w stan natychmiastowej wymagalności w poszczególnych kolumnach należy wpisać kwoty odpowiadające całemu pozostałemu do spłaty w danym roku kredytowi lub pożyczce wraz z odsetkami.
